bitfinex-derivatives/quotes_BTCF0:USTF0_20240820
["timestamp","ask_amount","ask_price","bid_price","bid_amount"]
[1724115297899,0.24609868,60463.0,60462.0,0.082667]
[1724115298596,0.24709868,60463.0,60462.0,0.083667]
[1724115298996,0.24709868,60463.0,60462.0,0.084667]
[1724115299191,0.01209868,60463.0,60462.0,0.084667]
[1724115299404,0.2234,60475.0,60462.0,0.95826]
[1724115299599,0.2234,60475.0,60468.0,0.2296]
[1724115299797,3.77,60474.0,60468.0,0.2296]
[1724115300197,0.3608,60479.0,60468.0,0.2296]
[1724115300399,0.3608,60479.0,60477.0,0.082646]
[1724115300400,0.37211785,60479.0,60477.0,0.082646]
[1724115300597,0.37211785,60479.0,60478.0,0.2242]
[1724115300598,0.01131785,60479.0,60478.0,0.2242]
[1724115300804,3.77,60482.0,60471.0,0.0016]
[1724115301102,3.77,60482.0,60468.0,0.001]
[1724115301103,0.3608,60472.0,60468.0,0.001]
[1724115301803,0.2284,60471.0,60468.0,0.001]
[1724115302098,0.18060554,60469.0,60466.0,0.2242]
[1724115302302,0.0723964,60468.0,60466.0,0.2242]
[1724115302503,0.4331964,60467.0,60462.0,0.23614806]
[1724115302712,0.0723964,60466.0,60462.0,0.23614806]
[1724115302907,0.0723964,60465.0,60462.0,0.23614806]
[1724115303109,0.0723964,60464.0,60462.0,0.00024806]
[1724115303302,0.0723964,60463.0,60462.0,0.00024806]
[1724115304002,0.0723964,60463.0,60462.0,0.00124806]
[1724115304003,3.89312518,60463.0,60462.0,0.00124806]
[1724115304202,0.18240136,60463.0,60462.0,0.00124806]
[1724115304401,0.12312518,60463.0,60462.0,0.00124806]
[1724115304603,0.12312518,60463.0,60446.0,0.01113603]
[1724115304604,1.31979386,60463.0,60436.0,0.3608]
[1724115304799,1.31979386,60463.0,60444.0,0.2173]
[1724115304800,0.1482982,60447.0,60444.0,0.2173]
[1724115304997,0.1482982,60445.0,60444.0,0.2173]
[1724115305213,0.0319245,60445.0,60444.0,0.2173]
[1724115306009,0.0723964,60445.0,60444.0,0.2173]
[1724115306414,0.0723964,60445.0,60444.0,0.2303]
[1724115306612,0.22068213,60445.0,60444.0,0.2303]
[1724115306817,0.0723964,60445.0,60444.0,0.2303]
[1724115307313,0.0723964,60445.0,60444.0,1.12662]
[1724115307512,0.0723964,60445.0,60444.0,1.13662]
[1724115307816,0.0319245,60445.0,60444.0,1.49742]
[1724115308303,0.0319245,60445.0,60444.0,1.48442]
[1724115308505,0.0319245,60445.0,60444.0,1.09642]
[1724115308908,0.0319245,60445.0,60444.0,0.6001]
[1724115309108,0.0319245,60445.0,60444.0,0.5871]
[1724115309313,0.0319245,60445.0,60444.0,0.5991]
[1724115309707,0.14828897,60446.0,60445.0,0.08269]
[1724115309903,0.16502316,60451.0,60444.0,0.60058]
[1724115310103,0.00024738,60451.0,60444.0,0.5991]
[1724115310416,0.00024738,60451.0,60449.0,0.082685]
[1724115311102,0.00024738,60451.0,60444.0,0.5991]
[1724115311302,0.00024738,60451.0,60445.0,0.008]
[1724115311507,0.00024738,60451.0,60447.0,0.082687]
[1724115311918,0.09893018,60470.0,60469.0,0.082658]
[1724115312116,0.09891469,60496.0,60469.0,0.5904]
[1724115312318,0.09891469,60496.0,60486.0,0.3608]
[1724115312319,3.77,60489.0,60486.0,0.3608]
[1724115313416,3.77,60489.0,60486.0,0.3618]
[1724115314206,3.7811534,60489.0,60486.0,0.3618]
[1724115314808,3.7811534,60489.0,60486.0,0.3628]
[1724115315014,4.4371134,60489.0,60486.0,0.3628]
[1724115315221,0.3608,60487.0,60486.0,0.002]
[1724115315416,0.3608,60487.0,60481.0,0.00024806]
[1724115315417,1.02676,60487.0,60481.0,0.00024806]
[1724115315612,0.5308,60487.0,60481.0,0.00024806]
[1724115315920,0.5308,60487.0,60468.0,0.3608]
[1724115315921,0.3608,60482.0,60468.0,0.3608]
[1724115316108,0.3608,60473.0,60460.0,0.31607]
[1724115316515,3.77,60465.0,60460.0,0.31607]
[1724115317013,0.09891469,60464.0,60460.0,0.31607]
[1724115317209,3.77,60465.0,60460.0,0.31607]
[1724115317210,0.09891469,60463.0,60460.0,0.31707]
[1724115317407,0.09891469,60462.0,60460.0,0.2344]
[1724115317614,0.16,60462.0,60456.0,1e-08]
[1724115317822,0.5208,60462.0,60456.0,1e-08]
[1724115318017,0.09870053,60458.0,60456.0,1e-08]
[1724115318314,0.3608,60463.0,60456.0,1e-08]
[1724115318522,0.5008,60463.0,60456.0,1e-08]
[1724115318716,0.5008,60463.0,60460.0,0.001]
[1724115319109,0.6362,60463.0,60460.0,0.001]
[1724115319725,0.6362,60463.0,60456.0,0.00500001]
[1724115319922,0.09871871,60457.0,60456.0,0.00500001]
[1724115320221,0.09871848,60458.0,60457.0,0.082674]
[1724115320420,0.3608,60462.0,60456.0,0.00500001]
[1724115320926,3.78176256,60465.0,60456.0,0.00500001]
[1724115321121,0.083666,60463.0,60456.0,0.00400001]
[1724115321315,0.001,60463.0,60456.0,0.36480001]
[1724115321513,0.002,60463.0,60457.0,0.082673]
[1724115321724,0.001,60462.0,60457.0,0.082673]
[1724115322323,0.09873213,60460.0,60458.0,0.2296]
[1724115322518,0.09873213,60462.0,60459.0,0.082671]
[1724115322711,0.09873213,60462.0,60457.0,0.3608]
[1724115322912,0.002,60463.0,60457.0,0.3608]
[1724115322913,0.09873213,60460.0,60457.0,0.3608]
[1724115323114,0.09873213,60458.0,60457.0,0.3608]
[1724115323318,0.002,60462.0,60457.0,0.3608]
[1724115324528,0.002,60462.0,60456.0,1e-08]
[1724115324529,0.003,60462.0,60456.0,1e-08]
[1724115324730,0.001,60462.0,60456.0,1e-08]
[1724115324914,0.001,60462.0,60457.0,0.004]
[1724115325120,0.3608,60458.0,60457.0,0.004]
[1724115325826,0.3608,60458.0,60456.0,1e-08]
[1724115325827,0.443474,60458.0,60456.0,0.00200001]
[1724115326020,4.213474,60458.0,60456.0,0.00200001]
[1724115326423,4.353474,60458.0,60456.0,0.00200001]
[1724115326729,0.082678,60455.0,60453.0,0.00013762]
[1724115326921,0.252678,60455.0,60453.0,0.00013762]
[1724115327124,0.748918,60455.0,60453.0,0.00013762]
[1724115327625,0.49624,60454.0,60453.0,0.00013762]
[1724115327835,0.66624,60454.0,60453.0,0.00013762]
[1724115328029,1.06624,60454.0,60453.0,0.00013762]
[1724115328330,4.83624,60454.0,60453.0,0.00013762]
[1724115328930,4.83724,60454.0,60453.0,0.00013762]
[1724115329125,4.84024,60454.0,60453.0,0.00013762]
[1724115329325,4.84024,60454.0,60448.0,0.00024806]
[1724115329532,0.3608,60452.0,60448.0,0.00024806]
[1724115329730,0.593481,60452.0,60448.0,0.00024806]
[1724115330225,0.00015229,60451.0,60448.0,0.00024806]
[1724115330423,0.16015229,60451.0,60448.0,0.00024806]
[1724115331234,0.00015229,60451.0,60448.0,0.00024806]
[1724115331625,0.00115229,60451.0,60448.0,0.00024806]
[1724115332128,0.00115229,60451.0,60448.0,0.00124806]
[1724115332323,0.00115229,60451.0,60449.0,0.082685]
[1724115334427,0.00015229,60451.0,60449.0,0.082685]
[1724115335028,0.17015229,60451.0,60449.0,0.082685]
[1724115335231,0.17015229,60451.0,60449.0,0.004]
[1724115335735,0.3608,60450.0,60449.0,0.004]
[1724115335942,0.5308,60450.0,60449.0,0.011]
[1724115336740,1.1527,60450.0,60438.0,0.2327]
[1724115337033,1.1527,60450.0,60434.0,0.444705]
[1724115337034,0.3608,60444.0,60434.0,0.444705]
[1724115337238,0.5308,60444.0,60434.0,0.443505]
[1724115337432,3.77,60443.0,60435.0,0.082704]
[1724115337633,3.94,60443.0,60435.0,0.082704]
[1724115338030,3.94,60443.0,60434.0,0.3608]
[1724115338429,3.94,60443.0,60434.0,0.3748]
[1724115339346,3.94,60443.0,60437.0,0.082701]
[1724115339532,3.95122408,60443.0,60437.0,0.082701]
[1724115340236,3.95222408,60443.0,60437.0,0.082701]
[1724115340734,3.95322408,60443.0,60437.0,0.093701]
[1724115342736,3.95322408,60443.0,60437.0,0.106701]
[1724115343344,3.95322408,60443.0,60438.0,0.0827]
[1724115343838,3.95322408,60443.0,60437.0,0.024]
[1724115344048,3.772,60443.0,60442.0,0.443495]
[1724115344741,3.771,60443.0,60442.0,0.082695]
[1724115345239,3.771,60443.0,60439.0,0.3608]
[1724115345546,3.941,60443.0,60439.0,0.3608]
[1724115345936,3.941,60443.0,60442.0,0.007]
[1724115346863,3.94,60443.0,60439.0,0.3618]
[1724115347153,0.00015229,60442.0,60439.0,0.3618]
[1724115347341,0.16015229,60442.0,60439.0,0.3618]
[1724115347647,0.16015229,60442.0,60439.0,0.3608]
[1724115348250,0.082699,60439.0,60432.0,0.4616]
[1724115348545,0.082699,60439.0,60432.0,0.0012]
[1724115348546,0.082705,60434.0,60432.0,0.0012]
[1724115348743,0.24285729,60434.0,60428.0,0.3608]
[1724115348943,0.3608,60429.0,60422.0,0.2236]
[1724115349151,0.3608,60429.0,60422.0,0.306321]
[1724115349341,3.77,60428.0,60422.0,0.306321]
[1724115349540,3.77,60428.0,60424.0,0.082718]
[1724115349742,3.77,60428.0,60426.0,0.082716]
[1724115350949,3.78192876,60428.0,60426.0,0.082716]
[1724115351839,3.78192876,60428.0,60426.0,0.086716]
[1724115352552,3.78092876,60428.0,60426.0,0.086716]
[1724115352754,3.78192876,60428.0,60426.0,0.092716]
[1724115353552,3.92192876,60428.0,60426.0,0.092716]
[1724115353748,3.92092876,60428.0,60426.0,0.091716]
[1724115354051,3.92092876,60428.0,60426.0,0.009]
[1724115354441,4.41740876,60428.0,60422.0,0.082722]
[1724115354639,3.92092876,60428.0,60426.0,0.007]
[1724115355145,4.41740876,60428.0,60426.0,0.005]
[1724115355347,4.41740876,60428.0,60420.0,0.36104806]
[1724115355348,0.00015229,60427.0,60420.0,0.36104806]
[1724115355551,0.36615229,60427.0,60420.0,0.36104806]
[1724115356152,0.673123,60421.0,60420.0,1e-08]
[1724115356345,1.23324531,60421.0,60420.0,1e-08]
[1724115356543,1.23324531,60421.0,60414.0,0.00017856]
[1724115356544,0.312332,60415.0,60414.0,0.00017856]
[1724115356747,0.73052392,60415.0,60402.0,0.4496]
[1724115356953,0.443539,60410.0,60402.0,0.4496]
[1724115357352,0.08274,60409.0,60402.0,0.4496]
[1724115357656,0.00014782,60408.0,60402.0,0.4496]
[1724115358047,0.00014782,60408.0,60402.0,0.227]
[1724115358048,0.16014782,60408.0,60402.0,0.227]
[1724115358248,0.082751,60401.0,60400.0,0.00024827]
[1724115358555,0.17013877,60401.0,60391.0,0.226]
[1724115358754,0.082762,60393.0,60391.0,0.226]
[1724115358948,0.00017066,60392.0,60382.0,0.2388]
[1724115359842,0.082767,60389.0,60381.0,0.00016596]
[1724115360163,0.314527,60389.0,60381.0,0.00016596]
[1724115360353,0.23176,60389.0,60381.0,0.00016596]
[1724115360662,0.23176,60389.0,60382.0,0.008]
[1724115360960,0.01198832,60392.0,60382.0,0.008]
[1724115361349,0.09475232,60392.0,60382.0,0.008]
[1724115361559,0.082765,60391.0,60382.0,0.008]
[1724115361750,0.242765,60391.0,60382.0,0.008]
[1724115361945,0.3608,60385.0,60382.0,0.008]
[1724115362152,0.3608,60385.0,60381.0,0.00016596]
[1724115362548,3.77,60384.0,60381.0,0.00016596]
[1724115362751,0.0001227,60383.0,60381.0,0.00016596]
[1724115363363,0.0828977,60383.0,60381.0,0.00016596]
[1724115363659,0.0828977,60383.0,60371.0,0.2388]
[1724115363660,0.49684,60382.0,60371.0,0.2388]
[1724115363862,0.3608,60372.0,60371.0,0.2388]
[1724115364048,0.3608,60372.0,60368.0,0.00014254]
[1724115364049,0.36096237,60372.0,60368.0,0.00014254]
[1724115364561,3.77,60371.0,60368.0,0.00014254]
[1724115366664,0.082794,60370.0,60368.0,0.00014254]
[1724115367368,3.77096001,60371.0,60368.0,0.00014254]
[1724115367564,3.77,60371.0,60368.0,0.00014254]
[1724115367859,1e-08,60376.0,60369.0,1.08732]
[1724115368053,1e-08,60376.0,60375.0,0.5904]
[1724115368259,0.3608,60385.0,60381.0,0.082778]
[1724115368465,0.3608,60385.0,60382.0,0.4489]
[1724115368660,0.082767,60389.0,60382.0,0.4489]
[1724115368864,0.44371411,60388.0,60382.0,0.4489]
[1724115370068,0.60371411,60388.0,60382.0,0.4489]
[1724115370663,0.52094411,60388.0,60382.0,0.4489]
[1724115370863,0.36094411,60388.0,60382.0,0.4489]
[1724115371568,0.082779,60381.0,60379.0,0.00024826]
[1724115371866,0.252779,60381.0,60379.0,0.00024826]
[1724115372464,0.3608,60384.0,60379.0,0.00024826]
[1724115372670,0.16,60384.0,60379.0,0.00024826]
[1724115372861,0.3608,60380.0,60379.0,0.00024826]
[1724115373164,0.14015839,60380.0,60379.0,0.00024826]
[1724115374471,0.00015839,60380.0,60379.0,0.00024826]
[1724115375064,0.3608,60401.0,60379.0,1.12668826]
[1724115375268,0.3608,60408.0,60390.0,0.7216]
[1724115375459,0.082746,60405.0,60391.0,0.2301]
[1724115375659,0.3608,60403.0,60391.0,0.2301]
[1724115375871,0.00833072,60404.0,60391.0,0.2301]
[1724115375872,0.3608,60402.0,60391.0,0.2301]
[1724115376768,0.5208,60402.0,60391.0,0.2301]
[1724115377466,0.3608,60394.0,60391.0,0.2301]
[1724115377674,0.5008,60394.0,60391.0,0.2301]
[1724115377969,0.5008,60394.0,60390.0,0.00024827]
[1724115379467,0.082762,60393.0,60390.0,0.00024827]
[1724115379671,0.232762,60393.0,60390.0,0.00024827]
[1724115379971,0.082762,60393.0,60390.0,0.00024827]
[1724115380364,3.77,60392.0,60390.0,0.00024827]
[1724115380667,0.3608,60394.0,60390.0,0.00024827]
[1724115380867,0.3608,60394.0,60393.0,0.082762]
[1724115381069,0.443547,60404.0,60394.0,0.08276]
[1724115381268,3.77,60402.0,60394.0,0.54876]
[1724115381467,3.77,60402.0,60394.0,0.466]
[1724115381777,0.00024827,60403.0,60400.0,0.3608]
[1724115382459,3.77024827,60403.0,60399.0,0.082752]
[1724115383968,3.77024827,60403.0,60400.0,0.3608]
[1724115384770,0.00024827,60403.0,60400.0,0.3608]
[1724115385676,0.14024827,60403.0,60400.0,0.443552]
[1724115386264,0.00024827,60403.0,60400.0,0.443552]
[1724115386469,0.00024827,60403.0,60401.0,0.082751]
[1724115387779,0.00024827,60403.0,60394.0,0.4672]
[1724115387780,0.082758,60396.0,60394.0,0.4672]
[1724115387972,0.3608,60395.0,60390.0,0.00024827]
[1724115388168,0.08276,60394.0,60390.0,0.00024827]
[1724115388370,0.14,60394.0,60390.0,0.00024827]
[1724115390075,0.15101052,60394.0,60390.0,0.00024827]
[1724115391885,0.14,60394.0,60390.0,0.00024827]
[1724115392074,0.3608,60395.0,60390.0,0.00024827]
[1724115392874,0.5116858,60395.0,60392.0,0.082763]
[1724115393269,0.0108858,60395.0,60392.0,0.082763]
[1724115393471,0.082752,60400.0,60392.0,0.082763]
[1724115393774,0.222752,60400.0,60392.0,0.082763]
[1724115395266,0.222752,60400.0,60390.0,0.00024827]
[1724115395267,0.14,60400.0,60390.0,0.00024827]
[1724115395466,0.082758,60396.0,60390.0,0.00024827]
[1724115395772,0.222758,60396.0,60390.0,0.00024827]
[1724115395977,0.082759,60395.0,60390.0,0.00024827]
[1724115396174,0.3608,60391.0,60390.0,0.00024827]
[1724115396373,0.5308,60391.0,60390.0,0.00024827]
[1724115396574,0.613564,60391.0,60390.0,0.00024827]
[1724115396977,0.613564,60391.0,60382.0,0.2402]
[1724115396978,0.082775,60383.0,60382.0,0.2402]
[1724115397178,0.5308,60383.0,60376.0,0.2336]
[1724115397378,0.3608,60377.0,60376.0,0.2336]
[1724115397567,4.1308,60377.0,60376.0,0.2336]
[1724115398067,4.2908,60377.0,60368.0,0.00014254]
[1724115398271,0.082791,60372.0,60370.0,0.00024826]
[1724115398483,0.3608,60371.0,60370.0,0.00024826]
[1724115398667,0.5208,60371.0,60370.0,0.00024826]
[1724115398977,0.3608,60371.0,60370.0,0.00024826]
[1724115400075,0.0112004,60382.0,60370.0,1.25796826]
[1724115400273,3.77,60389.0,60380.0,0.3608]
[1724115400467,0.877166,60390.0,60381.0,0.4364]
[1724115400670,0.667066,60390.0,60381.0,0.4364]
[1724115400875,0.306266,60390.0,60381.0,0.4364]
[1724115401180,0.01115115,60383.0,60381.0,0.4364]
[1724115401378,0.00024827,60383.0,60381.0,0.4364]
[1724115401675,0.00024827,60383.0,60381.0,0.519178]
[1724115401879,0.00024827,60383.0,60381.0,0.4364]
[1724115404674,0.01125519,60383.0,60381.0,0.4364]
[1724115404873,0.00024827,60383.0,60381.0,0.4364]
[1724115407285,0.00024827,60383.0,60381.0,0.519178]
[1724115409489,0.08278,60380.0,60374.0,0.3608]
[1724115413680,0.24278,60380.0,60374.0,0.3608]
[1724115413884,0.16,60380.0,60374.0,0.3608]
[1724115414079,0.16,60380.0,60371.0,0.4464]
[1724115414080,0.082782,60378.0,60371.0,0.4464]
[1724115414281,0.222782,60378.0,60371.0,0.4452]
[1724115414680,0.222782,60378.0,60371.0,0.527992]
[1724115415089,0.14,60378.0,60371.0,0.806]
[1724115415287,0.14,60378.0,60373.0,0.082789]
[1724115416984,0.14,60378.0,60371.0,0.80732]
[1724115416985,0.01093807,60378.0,60371.0,0.80732]
[1724115417187,0.00024827,60383.0,60371.0,0.806]
[1724115417385,0.14024827,60383.0,60377.0,0.3608]
[1724115417887,0.14024827,60383.0,60382.0,0.082777]
[1724115418089,0.00024827,60383.0,60382.0,0.443577]
[1724115418584,0.01107137,60383.0,60382.0,0.443577]
[1724115418791,0.00024827,60383.0,60382.0,0.443577]
[1724115418987,1e-08,60383.0,60382.0,1.340417]
[1724115419193,0.37198332,60398.0,60382.0,1.25764]
[1724115419495,0.37198332,60398.0,60388.0,0.3608]
[1724115419688,0.37198332,60398.0,60389.0,0.4466]
[1724115419896,0.37198332,60398.0,60391.0,0.082764]
[1724115421585,0.37198332,60398.0,60389.0,0.44784]
[1724115421786,0.37198332,60398.0,60389.0,0.4466]
[1724115422090,0.37198332,60398.0,60389.0,0.529367]
[1724115422288,0.37198332,60398.0,60389.0,0.4466]
[1724115422490,0.082758,60396.0,60389.0,0.4466]
[1724115422682,0.37198332,60398.0,60389.0,0.4466]
[1724115422883,0.62473832,60398.0,60389.0,0.4466]
[1724115423203,0.54198332,60398.0,60389.0,0.4466]
[1724115424488,0.08276,60394.0,60389.0,0.4466]
[1724115424696,0.3608,60393.0,60389.0,0.4466]
[1724115424893,0.08276,60394.0,60389.0,0.4466]
[1724115425193,0.37294333,60398.0,60389.0,0.4466]
[1724115425194,0.37198332,60398.0,60389.0,0.4466]
[1724115426292,0.37198332,60398.0,60394.0,0.08276]
[1724115427292,0.37198332,60398.0,60389.0,0.4466]
[1724115427293,0.53198332,60398.0,60389.0,0.4466]
[1724115427494,0.1985,60397.0,60389.0,0.4466]
[1724115427694,0.3585,60397.0,60389.0,0.4466]
[1724115427884,0.082764,60392.0,60389.0,0.4466]
[1724115428395,0.45473832,60398.0,60389.0,0.4466]
[1724115428595,0.53198332,60398.0,60389.0,0.4466]
[1724115428789,0.37198332,60398.0,60389.0,0.4466]
[1724115429292,0.37198332,60398.0,60395.0,0.082759]
[1724115429504,0.01118332,60398.0,60395.0,0.082759]
[1724115429702,0.00024827,60401.0,60389.0,0.4466]
[1724115429904,0.082753,60400.0,60391.0,0.082764]
[1724115430309,0.3608,60396.0,60391.0,0.082764]
[1724115430906,0.3608,60396.0,60392.0,0.082763]
[1724115432313,0.01098296,60401.0,60392.0,0.082763]
[1724115433413,0.082754,60399.0,60392.0,0.082763]
[1724115434317,0.3608,60398.0,60392.0,0.443563]
[1724115434509,0.5108,60398.0,60392.0,0.443563]
[1724115435510,0.5108,60398.0,60392.0,0.082763]
[1724115437617,0.11544556,60396.0,60392.0,0.082763]
[1724115438017,0.47624556,60396.0,60392.0,0.082763]
[1724115438217,0.11544556,60395.0,60392.0,0.082763]
[1724115438517,0.11544556,60395.0,60389.0,0.4478]
[1724115438704,0.082762,60393.0,60389.0,0.4466]
[1724115439312,0.11544556,60394.0,60389.0,0.4466]
[1724115439513,0.11544556,60394.0,60388.0,0.00024827]
[1724115439514,0.3608,60390.0,60388.0,0.00024827]
[1724115439815,0.632626,60390.0,60372.0,0.44359]
[1724115440117,0.3608,60380.0,60372.0,0.44359]
[1724115443021,0.3608,60380.0,60372.0,0.3608]
[1724115443217,0.3608,60380.0,60374.0,0.082787]
[1724115443621,0.08279,60373.0,60370.0,0.00024826]
[1724115443910,0.082791,60372.0,60370.0,0.00024826]
[1724115444214,0.3608,60374.0,60370.0,0.00024826]
[1724115447118,0.082789,60373.0,60370.0,0.00024826]
[1724115447318,0.3608,60374.0,60370.0,0.00024826]
[1724115447319,0.082791,60372.0,60370.0,0.00024826]
[1724115449418,0.09342382,60372.0,60370.0,0.00024826]
[1724115450015,0.24342382,60372.0,60370.0,0.00024826]
[1724115450422,0.082792,60371.0,60370.0,0.00024826]
[1724115450628,0.242792,60371.0,60370.0,0.00024826]
[1724115458920,0.01063282,60372.0,60370.0,0.08304126]
[1724115459123,0.17,60372.0,60371.0,0.2082]
[1724115460227,0.3725994,60374.0,60371.0,0.290992]
[1724115460433,0.3717594,60374.0,60371.0,0.290992]
[1724115462921,0.3717594,60374.0,60371.0,0.2082]
[1724115463129,0.3717594,60374.0,60373.0,0.082789]
[1724115467029,0.0109594,60374.0,60373.0,0.082789]
[1724115467230,0.3608,60376.0,60373.0,0.082789]
[1724115467527,0.5108,60376.0,60373.0,0.082789]
[1724115467729,0.15,60376.0,60373.0,0.082789]
[1724115468124,0.5108,60376.0,60373.0,0.082789]
[1724115468319,0.15,60376.0,60373.0,0.082789]
[1724115468522,0.5108,60376.0,60373.0,0.082789]
[1724115468929,0.15,60376.0,60373.0,0.082789]
[1724115469127,0.5108,60376.0,60373.0,0.082789]
[1724115471429,0.3608,60396.0,60373.0,0.85768]
[1724115471623,0.4108,60396.0,60387.0,0.08277]
[1724115471925,0.4108,60396.0,60384.0,0.3608]
[1724115471926,0.3608,60396.0,60388.0,0.4053]
[1724115472426,0.2018,60401.0,60391.0,0.082764]
[1724115472632,0.00024827,60398.0,60391.0,0.082764]
[1724115474238,0.3608,60393.0,60391.0,0.082764]
[1724115474630,0.00024827,60398.0,60391.0,0.082764]
[1724115477329,0.00024827,60398.0,60388.0,0.4053]
[1724115477631,0.443556,60397.0,60388.0,0.4053]
[1724115477834,0.3608,60397.0,60388.0,0.4053]
[1724115478336,3.77,60396.0,60388.0,0.4053]
[1724115478729,0.082758,60396.0,60388.0,0.4053]
[1724115479533,0.082758,60396.0,60388.0,0.2101]
[1724115479728,0.3608,60392.0,60388.0,0.2101]
[1724115479932,0.08277,60387.0,60386.0,0.00024827]
[1724115480235,0.443564,60391.0,60386.0,0.00024827]
[1724115480432,0.613564,60391.0,60386.0,0.00024827]
[1724115482830,0.082766,60390.0,60386.0,0.00024827]
[1724115483030,0.222766,60390.0,60386.0,0.00024827]
[1724115483436,0.222766,60390.0,60386.0,1e-08]
[1724115483437,0.31167,60387.0,60386.0,1e-08]
[1724115483634,0.45167,60387.0,60386.0,1e-08]
[1724115483835,0.22277,60387.0,60386.0,1e-08]
[1724115484038,3.91,60387.0,60386.0,1e-08]
[1724115484338,3.94,60387.0,60386.0,1e-08]
[1724115485546,3.77,60387.0,60386.0,1e-08]
[1724115486134,0.72248,60391.0,60386.0,1e-08]
[1724115486335,0.8716,60391.0,60386.0,1e-08]
[1724115486737,0.7216,60391.0,60386.0,1e-08]
[1724115486939,0.3608,60391.0,60386.0,1e-08]
[1724115487438,0.3608,60391.0,60390.0,0.082766]
[1724115487941,1e-08,60398.0,60397.0,0.082756]
[1724115488141,0.3608,60427.0,60400.0,0.2289]
[1724115488142,0.2066,60424.0,60400.0,0.2289]
[1724115488440,0.2066,60424.0,60415.0,0.3608]
[1724115490341,0.01060202,60425.0,60423.0,0.443519]
[1724115490545,0.00024827,60426.0,60424.0,0.443519]
[1724115490839,0.04049992,60425.0,60424.0,0.443519]
[1724115491237,0.3236233,60426.0,60424.0,0.939999]
[1724115491441,0.3236233,60426.0,60424.0,0.443519]
[1724115491442,0.00024827,60426.0,60424.0,0.443519]
[1724115491640,0.13135615,60425.0,60424.0,0.443519]
[1724115491842,0.00024827,60426.0,60424.0,0.443519]
[1724115492439,0.14791395,60426.0,60424.0,0.443519]
[1724115493449,0.13144065,60426.0,60424.0,0.3608]
[1724115493743,0.13119238,60425.0,60424.0,0.3608]
[1724115494243,0.00024827,60426.0,60424.0,0.3608]
[1724115495241,0.13115043,60425.0,60424.0,0.3608]
[1724115495451,0.1313987,60426.0,60424.0,0.3608]
[1724115495641,0.13115043,60425.0,60424.0,0.3608]
[1724115496241,0.00024827,60426.0,60424.0,0.3608]
[1724115498853,3.77,60425.0,60424.0,0.3608]
[1724115499744,0.00024827,60426.0,60424.0,0.3608]
[1724115499944,0.00024827,60426.0,60424.0,0.443518]
[1724115500850,0.15024827,60426.0,60424.0,0.443518]
[1724115501151,0.00024827,60426.0,60424.0,0.443518]
[1724115501549,0.00024827,60426.0,60425.0,0.3608]
[1724115501747,0.00024827,60426.0,60425.0,0.5624]
[1724115501948,0.082695,60442.0,60430.0,0.08271]
[1724115502154,0.37188,60440.0,60438.0,0.3608]
[1724115503447,0.46317598,60440.0,60433.0,0.00024827]
[1724115504455,0.3608,60438.0,60433.0,0.00024827]
[1724115504651,0.16,60438.0,60433.0,0.00024827]
[1724115506348,0.16,60438.0,60436.0,0.082703]
[1724115506551,3.77,60437.0,60436.0,0.082703]
[1724115506751,3.91,60437.0,60436.0,0.082703]
[1724115508256,0.14,60437.0,60436.0,0.3608]
[1724115508451,1e-08,60445.0,60444.0,0.082692]
[1724115508648,0.082672,60459.0,60449.0,0.082685]
[1724115508847,3.77,60458.0,60452.0,0.3608]
[1724115509060,3.91,60458.0,60452.0,0.3608]
[1724115509457,0.082679,60454.0,60452.0,0.3608]
[1724115509663,0.14,60454.0,60449.0,0.00024827]
[1724115511155,0.082683,60451.0,60449.0,0.00024827]
[1724115511357,0.242683,60451.0,60449.0,0.00024827]
[1724115511757,0.23172,60450.0,60449.0,0.00024827]
[1724115512062,0.40172,60450.0,60449.0,0.00024827]
[1724115512564,0.55226139,60450.0,60444.0,0.30599323]
[1724115512860,0.15054139,60449.0,60444.0,0.30599323]
[1724115513062,0.09123979,60448.0,60444.0,0.53489323]
[1724115513264,0.09123979,60447.0,60444.0,0.53489323]
[1724115513457,0.09123979,60446.0,60445.0,0.08269]
[1724115514753,0.09123979,60446.0,60444.0,0.30599323]
[1724115514958,0.09123979,60445.0,60444.0,0.30599323]
[1724115515459,0.15054139,60445.0,60444.0,0.30599323]
[1724115515665,0.09123979,60445.0,60444.0,0.30599323]
[1724115516169,0.09123899,60445.0,60444.0,0.30599323]
[1724115516460,0.15054059,60445.0,60444.0,0.53489323]
[1724115516866,0.15921519,60445.0,60444.0,0.53489323]
[1724115517362,0.15921519,60445.0,60444.0,0.61758523]
[1724115519667,0.15054059,60445.0,60444.0,0.61758523]
[1724115520069,0.0088029,60447.0,60446.0,0.082689]
[1724115520363,0.04928205,60447.0,60446.0,0.082689]
[1724115520569,0.0088029,60447.0,60446.0,0.979009]
[1724115520770,0.082666,60463.0,60455.0,0.082676]
[1724115520971,0.14024827,60461.0,60460.0,0.3608]
[1724115521559,0.14903037,60461.0,60460.0,0.3608]
[1724115521769,0.00903037,60461.0,60460.0,0.44347]
[1724115523468,0.00024827,60461.0,60460.0,1.33967]
[1724115523668,0.3608,60477.0,60460.0,1.257]
[1724115523873,0.3608,60477.0,60471.0,0.2289]
[1724115524173,0.3608,60477.0,60472.0,0.196]
[1724115524567,0.09855644,60473.0,60472.0,0.196]
[1724115525271,0.00862541,60477.0,60472.0,1.09208]
[1724115525469,0.00024805,60481.0,60476.0,0.3608]
[1724115525668,0.00892547,60481.0,60477.0,0.2289]
[1724115526067,0.10748191,60481.0,60477.0,0.2289]
[1724115526269,0.00892547,60481.0,60477.0,0.2289]
[1724115527678,0.00892547,60481.0,60478.0,0.082645]
[1724115528476,0.082625,60493.0,60480.0,0.3608]
[1724115528672,0.082625,60493.0,60483.0,0.082638]
[1724115529370,0.082625,60493.0,60480.0,0.3608]
[1724115529371,0.3608,60495.0,60482.0,0.00024805]
[1724115529577,0.00024805,60494.0,60483.0,0.082638]